[Event "*** SCC Grand Prix: Titled Tuesday Blitz"]
[Site "Chess.com"]
[Date "2020.07.21"]
[Round "6"]
[White "Man-Chuk"]
[Black "GregShahade"]
[Result "1-0"]
[WhiteElo "2851"]
[BlackElo "2703"]
[TimeControl "180+1"]
[EndTime "11:05:57 PDT"]
[Termination "Man-Chuk won by resignation"]

1. e4 {[%clk 0:03:00.9]} 1... e5 {[%clk 0:02:59.7]} 2. Nf3 {[%clk 0:02:59.9]}
2... Nc6 {[%clk 0:03:00]} 3. Bc4 {[%clk 0:02:59.8]} 3... Nf6 {[%clk 0:02:59.5]}
4. d3 {[%clk 0:02:59.8]} 4... Bc5 {[%clk 0:02:59.4]} 5. Bg5 {[%clk 0:03:00.1]}
5... a6 {[%clk 0:02:55.2]} 6. a4 {[%clk 0:02:55.8]} 6... h6 {[%clk 0:02:52.2]}
7. Bh4 {[%clk 0:02:55.5]} 7... d6 {[%clk 0:02:52]} 8. c3 {[%clk 0:02:54.8]} 8...
Ba7 {[%clk 0:02:47.5]} 9. Nbd2 {[%clk 0:02:54.2]} 9... g5 {[%clk 0:02:38.5]} 10.
Bg3 {[%clk 0:02:52.3]} 10... Nh5 {[%clk 0:01:46.2]} 11. Nxe5 {[%clk 0:02:50.6]}
11... Nxg3 {[%clk 0:01:46.4]} 12. Bxf7+ {[%clk 0:02:50.1]} 12... Ke7 {[%clk
0:01:29.2]} 13. Ng6+ {[%clk 0:02:50.6]} 13... Kxf7 {[%clk 0:01:29.5]} 14. Nxh8+
{[%clk 0:02:50.3]} 14... Qxh8 {[%clk 0:01:30.4]} 15. hxg3 {[%clk 0:02:50.3]}
15... Qf6 {[%clk 0:01:12.2]} 16. d4 {[%clk 0:02:50.1]} 16... Kg7 {[%clk
0:01:07.6]} 17. O-O {[%clk 0:02:48.7]} 17... Bd7 {[%clk 0:01:04.5]} 18. f4
{[%clk 0:02:44.7]} 18... Rf8 {[%clk 0:00:53.4]} 19. fxg5 {[%clk 0:02:12.8]}
19... Qxg5 {[%clk 0:00:42.9]} 20. Rxf8 {[%clk 0:02:13.2]} 20... Kxf8 {[%clk
0:00:43.5]} 21. Qf3+ {[%clk 0:02:11.8]} 21... Ke7 {[%clk 0:00:25.5]} 22. Rf1
{[%clk 0:02:08.1]} 22... Be8 {[%clk 0:00:24.8]} 23. Nc4 {[%clk 0:01:56]} 23...
Qg7 {[%clk 0:00:09.5]} 24. Ne3 {[%clk 0:01:54.8]} 24... Bg6 {[%clk 0:00:08.9]}
25. Nd5+ {[%clk 0:01:52.7]} 25... Kd7 {[%clk 0:00:09.3]} 26. Qg4+ {[%clk
0:01:51.2]} 26... Kd8 {[%clk 0:00:09.9]} 27. Rf6 {[%clk 0:01:45]} 27... Ne5
{[%clk 0:00:06.6]} 28. Qf4 {[%clk 0:01:25.5]} 28... Ke8 {[%clk 0:00:04.8]} 29.
Kh1 {[%clk 0:01:17.1]} 29... Nd7 {[%clk 0:00:04.8]} 30. Nxc7+ {[%clk 0:01:16.2]}
30... Kd8 {[%clk 0:00:05.1]} 31. Ne6+ {[%clk 0:01:16.3]} 31... Ke7 {[%clk
0:00:04.4]} 32. Nxg7 {[%clk 0:01:15]} 32... Nxf6 {[%clk 0:00:04.9]} 33. Nf5+
{[%clk 0:01:13.5]} 1-0

[Event "*** SCC Grand Prix: Titled Tuesday Blitz"]
[Site "Chess.com"]
[Date "2020.07.21"]
[Round "6"]
[White "PavelChernomordik"]
[Black "nocnypako"]
[Result "1-0"]
[WhiteElo "2360"]
[BlackElo "2558"]
[TimeControl "180+1"]
[EndTime "11:05:59 PDT"]
[Termination "PavelChernomordik won by resignation"]

1. e4 {[%clk 0:03:00.9]} 1... e6 {[%clk 0:02:59.5]} 2. Qe2 {[%clk 0:03:00.2]}
2... d5 {[%clk 0:03:00.4]} 3. exd5 {[%clk 0:02:59.2]} 3... Qxd5 {[%clk
0:03:01.3]} 4. Nc3 {[%clk 0:02:58.4]} 4... Qa5 {[%clk 0:03:00.4]} 5. Nf3 {[%clk
0:02:58]} 5... Nf6 {[%clk 0:03:00.8]} 6. g3 {[%clk 0:02:56.9]} 6... Bb4 {[%clk
0:03:01.1]} 7. Bg2 {[%clk 0:02:56.9]} 7... O-O {[%clk 0:03:01.6]} 8. O-O {[%clk
0:02:56.2]} 8... Nc6 {[%clk 0:03:02]} 9. a3 {[%clk 0:02:53.6]} 9... Bxc3 {[%clk
0:03:01.9]} 10. bxc3 {[%clk 0:02:48.1]} 10... Rb8 {[%clk 0:03:00.6]} 11. Rb1
{[%clk 0:02:45.7]} 11... b6 {[%clk 0:03:00.4]} 12. d4 {[%clk 0:02:42.4]} 12...
Ba6 {[%clk 0:02:59.9]} 13. c4 {[%clk 0:02:41]} 13... Rbd8 {[%clk 0:02:58.6]} 14.
Bb2 {[%clk 0:02:36.4]} 14... Qa4 {[%clk 0:02:57.4]} 15. Ne5 {[%clk 0:02:20.3]}
15... Nxe5 {[%clk 0:02:54.4]} 16. Qxe5 {[%clk 0:02:11.4]} 16... Bxc4 {[%clk
0:02:54.2]} 17. Rfe1 {[%clk 0:02:08.5]} 17... Bd5 {[%clk 0:02:54.3]} 18. Qxc7
{[%clk 0:02:03.9]} 18... Bxg2 {[%clk 0:02:53.1]} 19. Kxg2 {[%clk 0:02:03]} 19...
Nd5 {[%clk 0:02:53.1]} 20. Qe5 {[%clk 0:01:56.6]} 20... Qxc2 {[%clk 0:02:51.6]}
21. Ba1 {[%clk 0:01:55.5]} 21... Qa2 {[%clk 0:02:45.4]} 22. h4 {[%clk
0:01:40.8]} 22... Qxa3 {[%clk 0:02:44.4]} 23. h5 {[%clk 0:01:39.7]} 23... Qd6
{[%clk 0:02:44.5]} 24. Qg5 {[%clk 0:01:38.3]} 24... h6 {[%clk 0:02:43.6]} 25.
Qg4 {[%clk 0:01:37.6]} 25... Rc8 {[%clk 0:02:42]} 26. Re2 {[%clk 0:01:33.1]}
26... Nc3 {[%clk 0:02:37.8]} 27. Bxc3 {[%clk 0:01:30.7]} 27... Qd5+ {[%clk
0:02:37.4]} 28. Kh2 {[%clk 0:01:29]} 28... Rxc3 {[%clk 0:02:35.7]} 29. Rd1
{[%clk 0:01:25.4]} 29... a5 {[%clk 0:02:28.4]} 30. Re5 {[%clk 0:01:23.7]} 30...
Qc4 {[%clk 0:02:26.2]} 31. Qe4 {[%clk 0:01:13.6]} 31... a4 {[%clk 0:02:21.7]}
32. g4 {[%clk 0:01:13]} 32... Rc2 {[%clk 0:02:20]} 33. Kg3 {[%clk 0:01:09]}
33... Qb3+ {[%clk 0:02:12]} 34. Rd3 {[%clk 0:01:07.5]} 34... Rc3 {[%clk
0:02:12.2]} 35. Rxc3 {[%clk 0:01:06]} 35... Qxc3+ {[%clk 0:02:13.1]} 36. f3
{[%clk 0:01:04.8]} 36... a3 {[%clk 0:02:09.6]} 37. g5 {[%clk 0:01:04.3]} 37...
hxg5 {[%clk 0:02:02.8]} 38. Rxg5 {[%clk 0:01:03]} 38... Qc7+ {[%clk 0:02:01.5]}
39. Kh3 {[%clk 0:01:00.6]} 39... Qe7 {[%clk 0:02:01.1]} 40. Rg2 {[%clk
0:00:55.5]} 40... f5 {[%clk 0:01:56.4]} 41. Qe5 {[%clk 0:00:52.6]} 41... Qf6
{[%clk 0:01:56.2]} 42. Qd6 {[%clk 0:00:49.5]} 42... Qh6 {[%clk 0:01:51.4]} 43.
Kh4 {[%clk 0:00:48.1]} 43... a2 {[%clk 0:01:43.1]} 44. Rxa2 {[%clk 0:00:45.5]}
44... g5+ {[%clk 0:01:43.1]} 45. Kg3 {[%clk 0:00:43.9]} 45... Qxh5 {[%clk
0:01:33.8]} 46. Qxe6+ {[%clk 0:00:39.7]} 46... Rf7 {[%clk 0:01:29.1]} 47. Ra8+
{[%clk 0:00:37.7]} 47... Kh7 {[%clk 0:01:29.3]} 48. Qe8 {[%clk 0:00:34.5]} 48...
f4+ {[%clk 0:01:29.4]} 49. Kg2 {[%clk 0:00:34]} 1-0

[Event "*** SCC Grand Prix: Titled Tuesday Blitz"]
[Site "Chess.com"]
[Date "2020.07.21"]
[Round "6"]
[White "maciejos95"]
[Black "124chess"]
[Result "0-1"]
[WhiteElo "2485"]
[BlackElo "2687"]
[TimeControl "180+1"]
[EndTime "11:06:05 PDT"]
[Termination "124chess won by resignation"]

1. e4 {[%clk 0:03:00.9]} 1... e6 {[%clk 0:02:59.9]} 2. d4 {[%clk 0:03:00.3]}
2... d5 {[%clk 0:03:00.8]} 3. Nd2 {[%clk 0:02:59.9]} 3... Nc6 {[%clk 0:03:00.9]}
4. Ngf3 {[%clk 0:02:58.3]} 4... Nf6 {[%clk 0:03:01.4]} 5. exd5 {[%clk
0:02:45.9]} 5... exd5 {[%clk 0:03:00.9]} 6. Bb5 {[%clk 0:02:46]} 6... Bd6 {[%clk
0:03:00.9]} 7. O-O {[%clk 0:02:43.5]} 7... O-O {[%clk 0:03:01]} 8. h3 {[%clk
0:02:34.5]} 8... Ne7 {[%clk 0:03:01.2]} 9. Bd3 {[%clk 0:02:32]} 9... Bf5 {[%clk
0:03:01.1]} 10. Bxf5 {[%clk 0:02:25.6]} 10... Nxf5 {[%clk 0:03:02]} 11. Re1
{[%clk 0:02:22]} 11... Re8 {[%clk 0:03:02.2]} 12. Nf1 {[%clk 0:02:11.5]} 12...
Rxe1 {[%clk 0:03:00.2]} 13. Qxe1 {[%clk 0:02:11.2]} 13... Qd7 {[%clk 0:03:00.9]}
14. Bg5 {[%clk 0:02:03.5]} 14... Re8 {[%clk 0:03:00.5]} 15. Qa5 {[%clk
0:01:57.5]} 15... Ne4 {[%clk 0:03:00]} 16. Qxa7 {[%clk 0:01:45.1]} 16... Qb5
{[%clk 0:02:46.3]} 17. Re1 {[%clk 0:01:35]} 17... Qxb2 {[%clk 0:02:39.4]} 18.
Qa4 {[%clk 0:00:57.4]} 18... b5 {[%clk 0:02:39]} 19. Qb3 {[%clk 0:00:56.7]}
19... Qxb3 {[%clk 0:02:39.2]} 20. axb3 {[%clk 0:00:56.2]} 20... Kf8 {[%clk
0:02:40.1]} 21. Be3 {[%clk 0:00:47.3]} 21... Bb4 {[%clk 0:02:36.7]} 22. Ra1
{[%clk 0:00:45.6]} 22... Nc3 {[%clk 0:02:20.6]} 23. Ra7 {[%clk 0:00:41.9]} 23...
Bd6 {[%clk 0:02:20.8]} 24. g4 {[%clk 0:00:27.1]} 24... Ne2+ {[%clk 0:02:05.4]}
25. Kg2 {[%clk 0:00:26.7]} 25... Nxe3+ {[%clk 0:02:05]} 26. Nxe3 {[%clk
0:00:26.4]} 26... Nf4+ {[%clk 0:02:05.2]} 27. Kf1 {[%clk 0:00:26.1]} 27... g6
{[%clk 0:01:52.8]} 28. h4 {[%clk 0:00:24.4]} 28... Ke7 {[%clk 0:01:51.7]} 29.
Ne5 {[%clk 0:00:20.3]} 29... f6 {[%clk 0:01:43.5]} 30. Nd3 {[%clk 0:00:18.5]}
30... Nxd3 {[%clk 0:01:35.9]} 31. cxd3 {[%clk 0:00:18.6]} 31... Ke6 {[%clk
0:01:32.1]} 32. Rb7 {[%clk 0:00:18.7]} 32... b4 {[%clk 0:01:30.2]} 33. Rb5
{[%clk 0:00:18]} 33... Ra8 {[%clk 0:01:19.7]} 34. Kg2 {[%clk 0:00:14]} 34... Ra3
{[%clk 0:01:18.7]} 35. Nf1 {[%clk 0:00:06.3]} 35... Rxb3 {[%clk 0:01:17.6]} 36.
Rb8 {[%clk 0:00:06]} 36... Rxd3 {[%clk 0:01:16.4]} 37. Rh8 {[%clk 0:00:05.3]}
37... Rxd4 {[%clk 0:01:15.2]} 38. Rxh7 {[%clk 0:00:04.8]} 38... b3 {[%clk
0:01:14.4]} 39. Ne3 {[%clk 0:00:04.5]} 39... b2 {[%clk 0:01:13.3]} 0-1

[Event "*** SCC Grand Prix: Titled Tuesday Blitz"]
[Site "Chess.com"]
[Date "2020.07.21"]
[Round "6"]
[White "Th3_Hound"]
[Black "exoticprincess"]
[Result "0-1"]
[WhiteElo "2594"]
[BlackElo "2841"]
[TimeControl "180+1"]
[EndTime "11:06:10 PDT"]
[Termination "exoticprincess won by resignation"]

1. e4 {[%clk 0:03:00.9]} 1... e5 {[%clk 0:02:59.1]} 2. Nf3 {[%clk 0:03:00.7]}
2... Nf6 {[%clk 0:02:59.4]} 3. Nxe5 {[%clk 0:02:59.3]} 3... d6 {[%clk
0:02:59.4]} 4. Nf3 {[%clk 0:02:59.7]} 4... Nxe4 {[%clk 0:03:00]} 5. Bd3 {[%clk
0:03:00.2]} 5... Nc5 {[%clk 0:02:57.1]} 6. Be2 {[%clk 0:03:00.5]} 6... d5 {[%clk
0:02:56.6]} 7. d4 {[%clk 0:03:00.6]} 7... Ne4 {[%clk 0:02:57.1]} 8. O-O {[%clk
0:03:01.1]} 8... Bd6 {[%clk 0:02:56.6]} 9. c4 {[%clk 0:02:56.9]} 9... c6 {[%clk
0:02:56.3]} 10. Nc3 {[%clk 0:02:56.8]} 10... O-O {[%clk 0:02:55.6]} 11. Bd3
{[%clk 0:02:47.4]} 11... Re8 {[%clk 0:02:53.6]} 12. Re1 {[%clk 0:02:45]} 12...
Nxc3 {[%clk 0:02:53.7]} 13. bxc3 {[%clk 0:02:44.8]} 13... Rxe1+ {[%clk
0:02:53.6]} 14. Qxe1 {[%clk 0:02:44]} 14... Nd7 {[%clk 0:02:53.1]} 15. c5 {[%clk
0:02:39.3]} 15... Bc7 {[%clk 0:02:51]} 16. Bg5 {[%clk 0:02:37.2]} 16... f6
{[%clk 0:02:50]} 17. Bh4 {[%clk 0:02:35.7]} 17... Nf8 {[%clk 0:02:49.1]} 18. Bg3
{[%clk 0:02:31.8]} 18... Bg4 {[%clk 0:02:48.3]} 19. Nd2 {[%clk 0:02:25.1]} 19...
Qd7 {[%clk 0:02:42.1]} 20. Rb1 {[%clk 0:02:24]} 20... Re8 {[%clk 0:02:40.5]} 21.
Qf1 {[%clk 0:02:23.1]} 21... b6 {[%clk 0:02:40]} 22. cxb6 {[%clk 0:02:19.5]}
22... axb6 {[%clk 0:02:39.7]} 23. Bxc7 {[%clk 0:02:12.9]} 23... Qxc7 {[%clk
0:02:39.3]} 24. Nb3 {[%clk 0:02:10.4]} 24... Ra8 {[%clk 0:02:34.6]} 25. Rb2
{[%clk 0:02:09.6]} 25... Bh5 {[%clk 0:02:30.9]} 26. c4 {[%clk 0:02:08.9]} 26...
Bf7 {[%clk 0:02:26.2]} 27. c5 {[%clk 0:02:08.6]} 27... b5 {[%clk 0:02:26.7]} 28.
Qe1 {[%clk 0:02:07.8]} 28... Bg6 {[%clk 0:02:24.4]} 29. Bf1 {[%clk 0:02:07]}
29... Ra4 {[%clk 0:02:15.5]} 30. Qe3 {[%clk 0:02:01.4]} 30... Qa7 {[%clk
0:02:14.4]} 31. Qd2 {[%clk 0:01:59.3]} 31... Ne6 {[%clk 0:02:13]} 32. Qe3 {[%clk
0:01:53]} 32... Bf7 {[%clk 0:01:57.9]} 33. Qd2 {[%clk 0:01:51.4]} 33... Ra3
{[%clk 0:01:54.8]} 34. Be2 {[%clk 0:01:40.4]} 34... Ra4 {[%clk 0:01:54.5]} 35.
Bf1 {[%clk 0:01:40.2]} 35... Ng5 {[%clk 0:01:50.7]} 36. Bd3 {[%clk 0:01:36]}
36... Bg6 {[%clk 0:01:49.6]} 37. Bf1 {[%clk 0:01:33.7]} 37... Ne4 {[%clk
0:01:49.3]} 38. Qe2 {[%clk 0:01:30.6]} 38... Bf7 {[%clk 0:01:37.9]} 39. Qg4
{[%clk 0:01:24.7]} 39... Qc7 {[%clk 0:01:29]} 40. Bd3 {[%clk 0:01:14.2]} 40...
h5 {[%clk 0:01:24.4]} 41. Qd1 {[%clk 0:01:12.2]} 41... Nc3 {[%clk 0:01:21]} 42.
Qc2 {[%clk 0:01:08]} 42... b4 {[%clk 0:01:20.9]} 43. Nc1 {[%clk 0:01:07.7]}
43... Qa5 {[%clk 0:01:17.7]} 44. g3 {[%clk 0:01:05.9]} 44... Nb5 {[%clk
0:01:10.8]} 45. Bxb5 {[%clk 0:01:02.8]} 45... Qxb5 {[%clk 0:01:11.7]} 46. Qf5
{[%clk 0:00:57.9]} 46... Qa6 {[%clk 0:01:07.3]} 47. Qd7 {[%clk 0:00:54.5]} 47...
Qc4 {[%clk 0:01:07.4]} 48. Ne2 {[%clk 0:00:52]} 48... Rxa2 {[%clk 0:01:03]} 49.
Qd8+ {[%clk 0:00:49.7]} 49... Kh7 {[%clk 0:01:02.5]} 0-1

[Event "*** SCC Grand Prix: Titled Tuesday Blitz"]
[Site "Chess.com"]
[Date "2020.07.21"]
[Round "6"]
[White "Igor_Lysyj"]
[Black "Indianlad"]
[Result "0-1"]
[WhiteElo "2819"]
[BlackElo "2980"]
[TimeControl "180+1"]
[EndTime "11:06:11 PDT"]
[Termination "Indianlad won by resignation"]

1. d4 {[%clk 0:03:00.9]} 1... d5 {[%clk 0:03:00.2]} 2. c4 {[%clk 0:03:00.5]}
2... e6 {[%clk 0:03:00.5]} 3. Nf3 {[%clk 0:03:00.1]} 3... a6 {[%clk 0:03:00.5]}
4. Bg5 {[%clk 0:02:57.7]} 4... Be7 {[%clk 0:02:56.8]} 5. Bxe7 {[%clk 0:02:57.5]}
5... Qxe7 {[%clk 0:02:57.6]} 6. Nbd2 {[%clk 0:02:57]} 6... Nf6 {[%clk
0:02:57.8]} 7. Rc1 {[%clk 0:02:56.6]} 7... O-O {[%clk 0:02:58.1]} 8. g3 {[%clk
0:02:56.5]} 8... b6 {[%clk 0:02:51.9]} 9. Bg2 {[%clk 0:02:53.7]} 9... Bb7 {[%clk
0:02:52]} 10. cxd5 {[%clk 0:02:52.5]} 10... exd5 {[%clk 0:02:48.7]} 11. O-O
{[%clk 0:02:51]} 11... c5 {[%clk 0:02:48.6]} 12. Qb3 {[%clk 0:02:43.2]} 12... c4
{[%clk 0:02:25.4]} 13. Qxb6 {[%clk 0:02:35.9]} 13... Nc6 {[%clk 0:02:26]} 14.
Ne5 {[%clk 0:02:22]} 14... Rfc8 {[%clk 0:02:25.6]} 15. e3 {[%clk 0:01:52.3]}
15... Rab8 {[%clk 0:02:05]} 16. Nxc6 {[%clk 0:01:27.7]} 16... Bxc6 {[%clk
0:01:54.2]} 17. Qa5 {[%clk 0:01:24.3]} 17... Rxb2 {[%clk 0:01:47.9]} 18. Qxa6
{[%clk 0:01:17]} 18... Qc7 {[%clk 0:01:47.2]} 19. Nxc4 {[%clk 0:00:57.5]} 19...
dxc4 {[%clk 0:01:26.9]} 20. Rxc4 {[%clk 0:00:55.1]} 20... Rb6 {[%clk 0:01:06.3]}
21. Qa5 {[%clk 0:00:52.7]} 21... Qb7 {[%clk 0:00:55.4]} 22. Rfc1 {[%clk
0:00:51.7]} 22... h5 {[%clk 0:00:53.9]} 23. Qc3 {[%clk 0:00:45.3]} 23... Bxg2
{[%clk 0:00:51.5]} 24. Rxc8+ {[%clk 0:00:44]} 24... Kh7 {[%clk 0:00:52.3]} 25.
Qc7 {[%clk 0:00:26.9]} 25... Qf3 {[%clk 0:00:43.3]} 26. Qxb6 {[%clk 0:00:18.7]}
26... Bh3 {[%clk 0:00:43.4]} 27. Qc6 {[%clk 0:00:18.7]} 27... Ne4 {[%clk
0:00:43.7]} 28. Rh8+ {[%clk 0:00:09.8]} 28... Kxh8 {[%clk 0:00:43.7]} 29. Qe8+
{[%clk 0:00:07.2]} 29... Kh7 {[%clk 0:00:43.9]} 0-1

[Event "*** SCC Grand Prix: Titled Tuesday Blitz"]
[Site "Chess.com"]
[Date "2020.07.21"]
[Round "6"]
[White "Panterov"]
[Black "ChristianAlm"]
[Result "0-1"]
[WhiteElo "2179"]
[BlackElo "2528"]
[TimeControl "180+1"]
[EndTime "11:06:13 PDT"]
[Termination "ChristianAlm won by resignation"]

1. e4 {[%clk 0:03:00.9]} 1... c5 {[%clk 0:02:56.8]} 2. b3 {[%clk 0:03:00.7]}
2... Nc6 {[%clk 0:02:55.9]} 3. Bb2 {[%clk 0:03:01]} 3... d6 {[%clk 0:02:55.9]}
4. Nc3 {[%clk 0:03:01.2]} 4... Nf6 {[%clk 0:02:56.3]} 5. g3 {[%clk 0:03:01.5]}
5... g6 {[%clk 0:02:56.5]} 6. Bg2 {[%clk 0:03:01.8]} 6... Bg7 {[%clk 0:02:56.3]}
7. Nge2 {[%clk 0:03:02.2]} 7... O-O {[%clk 0:02:56.3]} 8. f4 {[%clk 0:03:02]}
8... e6 {[%clk 0:02:48.2]} 9. O-O {[%clk 0:03:01.7]} 9... a6 {[%clk 0:02:43]}
10. a4 {[%clk 0:03:01]} 10... d5 {[%clk 0:02:08.3]} 11. e5 {[%clk 0:02:57.9]}
11... Ne8 {[%clk 0:01:50.6]} 12. d4 {[%clk 0:02:57.9]} 12... cxd4 {[%clk
0:01:47.3]} 13. Nxd4 {[%clk 0:02:58]} 13... Qb6 {[%clk 0:01:42.1]} 14. Ne2
{[%clk 0:02:56.7]} 14... Bd7 {[%clk 0:01:38.7]} 15. Kh1 {[%clk 0:02:54.2]} 15...
Rc8 {[%clk 0:01:37.6]} 16. Ba3 {[%clk 0:02:45.7]} 16... f6 {[%clk 0:01:26.1]}
17. Nxc6 {[%clk 0:02:37.8]} 17... Bxc6 {[%clk 0:01:21.8]} 18. Nd4 {[%clk
0:02:31]} 18... fxe5 {[%clk 0:01:15.6]} 19. Bxf8 {[%clk 0:02:21.8]} 19... exd4
{[%clk 0:01:06.5]} 20. a5 {[%clk 0:02:10.1]} 20... Qa7 {[%clk 0:00:58.9]} 21.
Bxg7 {[%clk 0:01:55.5]} 21... Nxg7 {[%clk 0:00:59.8]} 22. Re1 {[%clk 0:01:48.8]}
22... Bd7 {[%clk 0:00:58.5]} 23. Qd2 {[%clk 0:01:44.1]} 23... Qc5 {[%clk
0:00:57.1]} 24. Rad1 {[%clk 0:01:42.6]} 24... Nf5 {[%clk 0:00:57.1]} 25. Bh3
{[%clk 0:01:34.1]} 25... Ne3 {[%clk 0:00:53.4]} 26. Rc1 {[%clk 0:01:28.1]} 26...
Qc3 {[%clk 0:00:34.8]} 27. Qd3 {[%clk 0:01:16.3]} 27... Kf7 {[%clk 0:00:24.9]}
28. g4 {[%clk 0:01:05.6]} 28... Nxc2 {[%clk 0:00:21.4]} 29. Qxc3 {[%clk
0:00:58.8]} 29... Rxc3 {[%clk 0:00:20.2]} 30. Rf1 {[%clk 0:00:53.9]} 30... Ne3
{[%clk 0:00:15.8]} 31. Rfe1 {[%clk 0:00:51.5]} 31... Rxc1 {[%clk 0:00:14.2]} 32.
Rxc1 {[%clk 0:00:51.7]} 32... d3 {[%clk 0:00:14.4]} 33. f5 {[%clk 0:00:51.6]}
33... d2 {[%clk 0:00:14]} 34. fxg6+ {[%clk 0:00:50.3]} 34... hxg6 {[%clk
0:00:13.7]} 35. Rb1 {[%clk 0:00:50.6]} 35... d1=Q+ {[%clk 0:00:12.7]} 36. Rxd1
{[%clk 0:00:49.8]} 36... Nxd1 {[%clk 0:00:13.6]} 0-1

[Event "*** SCC Grand Prix: Titled Tuesday Blitz"]
[Site "Chess.com"]
[Date "2020.07.21"]
[Round "6"]
[White "OnePeculiarConundrum"]
[Black "Harry_Rakkel"]
[Result "0-1"]
[WhiteElo "2335"]
[BlackElo "2538"]
[TimeControl "180+1"]
[EndTime "11:06:16 PDT"]
[Termination "Harry_Rakkel won by checkmate"]

1. e4 {[%clk 0:03:00.9]} 1... c5 {[%clk 0:02:57.9]} 2. Nf3 {[%clk 0:03:00.2]}
2... d6 {[%clk 0:02:57.8]} 3. d4 {[%clk 0:02:59.1]} 3... cxd4 {[%clk 0:02:57.7]}
4. Qxd4 {[%clk 0:02:58.8]} 4... Nc6 {[%clk 0:02:55.4]} 5. Bb5 {[%clk 0:02:57.8]}
5... Bd7 {[%clk 0:02:55.8]} 6. Bxc6 {[%clk 0:02:57.5]} 6... Bxc6 {[%clk
0:02:55.5]} 7. O-O {[%clk 0:02:57.1]} 7... Nf6 {[%clk 0:02:54.8]} 8. Re1 {[%clk
0:02:55.4]} 8... e6 {[%clk 0:02:54.2]} 9. Nc3 {[%clk 0:02:51.2]} 9... Be7 {[%clk
0:02:53.2]} 10. Bg5 {[%clk 0:02:49.6]} 10... Qc7 {[%clk 0:02:49.5]} 11. Rad1
{[%clk 0:02:47.5]} 11... O-O {[%clk 0:02:43.7]} 12. Qd3 {[%clk 0:02:45.5]} 12...
a6 {[%clk 0:02:39.2]} 13. a4 {[%clk 0:02:43]} 13... Rfd8 {[%clk 0:02:38.4]} 14.
Nd4 {[%clk 0:02:40.7]} 14... Be8 {[%clk 0:02:37.5]} 15. Qg3 {[%clk 0:02:22.8]}
15... Rac8 {[%clk 0:02:37.4]} 16. Re3 {[%clk 0:02:12.1]} 16... Qb6 {[%clk
0:02:30.1]} 17. Rf3 {[%clk 0:01:36]} 17... Nh5 {[%clk 0:02:21.8]} 18. Qh4 {[%clk
0:01:34.9]} 18... Bxg5 {[%clk 0:02:21.3]} 19. Qxg5 {[%clk 0:01:33.6]} 19... g6
{[%clk 0:02:17.1]} 20. b3 {[%clk 0:01:04.1]} 20... Rc5 {[%clk 0:02:09]} 21. Qd2
{[%clk 0:00:30.9]} 21... Rdc8 {[%clk 0:02:03.8]} 22. Nde2 {[%clk 0:00:30]} 22...
R5c6 {[%clk 0:01:51]} 23. Rd3 {[%clk 0:00:29.5]} 23... Qa5 {[%clk 0:01:40.4]}
24. h3 {[%clk 0:00:11.7]} 24... Nf6 {[%clk 0:01:33.8]} 25. Kh2 {[%clk
0:00:10.1]} 25... Kg7 {[%clk 0:01:32.3]} 26. Rf3 {[%clk 0:00:08.1]} 26... Qe5+
{[%clk 0:01:30]} 27. Qf4 {[%clk 0:00:06.9]} 27... Qxf4+ {[%clk 0:01:25.7]} 28.
Rxf4 {[%clk 0:00:07.8]} 28... Rxc3 {[%clk 0:01:25.5]} 29. Nxc3 {[%clk
0:00:08.7]} 29... Rxc3 {[%clk 0:01:25]} 30. Rxd6 {[%clk 0:00:09.6]} 30... Rxc2
{[%clk 0:01:24.2]} 31. e5 {[%clk 0:00:09.8]} 31... Nd5 {[%clk 0:01:22.7]} 32.
Rc4 {[%clk 0:00:10]} 32... Rxf2 {[%clk 0:01:19.6]} 33. Rc8 {[%clk 0:00:10.1]}
33... Bc6 {[%clk 0:01:18.4]} 34. b4 {[%clk 0:00:09.4]} 34... Ne3 {[%clk
0:01:16.4]} 35. Rcxc6 {[%clk 0:00:05.7]} 35... bxc6 {[%clk 0:01:15.5]} 36. Rxc6
{[%clk 0:00:06.6]} 36... Rxg2+ {[%clk 0:01:15.1]} 37. Kh1 {[%clk 0:00:07.3]}
37... Rb2 {[%clk 0:01:15.5]} 38. Rxa6 {[%clk 0:00:06.5]} 38... Rxb4 {[%clk
0:01:15]} 39. Ra7 {[%clk 0:00:06.9]} 39... Nc4 {[%clk 0:01:13.7]} 40. a5 {[%clk
0:00:05.5]} 40... Nxe5 {[%clk 0:01:12.3]} 41. a6 {[%clk 0:00:05.8]} 41... Ra4
{[%clk 0:01:11.8]} 42. Ra8 {[%clk 0:00:05.9]} 42... Ra2 {[%clk 0:01:10.5]} 43.
Kg1 {[%clk 0:00:05.9]} 43... Nf3+ {[%clk 0:01:10.3]} 44. Kf1 {[%clk 0:00:06.2]}
44... e5 {[%clk 0:01:10.3]} 45. a7 {[%clk 0:00:05.8]} 45... e4 {[%clk
0:01:10.1]} 46. h4 {[%clk 0:00:05.7]} 46... e3 {[%clk 0:01:10.1]} 47. Re8 {[%clk
0:00:06.3]} 47... Rf2# {[%clk 0:01:09.5]} 0-1